fUST/lending_fUST_20241231
["ID","MTS","AMOUNT","RATE_DAILY","PERIOD"]
[347245070,1735621839036,-500.0,0.00019178,2]
[347245071,1735621839047,-500.0,0.00019178,2]
[347245072,1735621839058,-500.0,0.00019178,2]
[347245073,1735621839068,-501.83254059,0.00019178,2]
[347245074,1735621839079,-500.0,0.00019178,2]
[347245075,1735621839089,-500.0,0.00019178,2]
[347245076,1735621839100,-500.0,0.00019178,2]
[347245077,1735621839110,-500.0,0.00019178,2]
[347245078,1735621839121,-500.44144192,0.00019178,2]
[347245079,1735621839134,-500.0,0.00019178,2]
[347245080,1735621839145,-500.0,0.00019178,2]
[347245081,1735621839156,-1000.0,0.00019178,2]
[347245082,1735621839166,-500.0,0.00019178,2]
[347245083,1735621839176,-500.0,0.00019178,2]
[347245084,1735621839187,-500.0,0.00019178,2]
[347245085,1735621839197,-500.0,0.00019178,2]
[347245086,1735621839207,-500.0,0.00019178,2]
[347245087,1735621839217,-500.0,0.00019178,2]
[347245088,1735621839228,-500.0,0.00019178,2]
[347245089,1735621839239,-501.61666498,0.00019178,2]
[347245090,1735621839250,-500.0,0.00019178,2]
[347245091,1735621839260,-500.0,0.00019178,2]
[347245092,1735621839271,-500.0,0.00019178,2]
[347245093,1735621839281,-500.0,0.00019178,2]
[347245094,1735621839291,-500.0,0.00019178,2]
[347245095,1735621839302,-500.0,0.00019178,2]
[347245096,1735621839312,-503.25614815,0.00019178,2]
[347245097,1735621839323,-500.0,0.00019178,2]
[347245098,1735621839333,-500.0,0.00019178,2]
[347245099,1735621839344,-500.0,0.00019178,2]
[347245100,1735621839354,-484.54836633,0.00019178,2]
[347245101,1735621839369,-15.45163367,0.00019178,2]
[347245102,1735621839381,-500.0,0.00019178,2]
[347245103,1735621839392,-238.62836573,0.00019178,2]
[347245104,1735621839405,-263.33835255,0.00019178,2]
[347245105,1735621839416,-500.0,0.00019178,2]
[347245106,1735621839426,-500.0,0.00019178,2]
[347245107,1735621839550,-500.0,0.00019178,2]
[347245108,1735621839561,-500.0,0.00019178,2]
[347245109,1735621839571,-500.0,0.00019178,2]
[347245110,1735621839580,-501.6815125,0.00019178,2]
[347245111,1735621839590,-500.0,0.00019178,2]
[347245112,1735621839599,-500.0,0.00019178,2]
[347245113,1735621839609,-500.0,0.00019178,2]
[347245114,1735621839618,-500.0,0.00019178,2]
[347245115,1735621839628,-500.0,0.00019178,2]
[347245116,1735621839638,-500.0,0.00019178,2]
[347245117,1735621839650,-500.0,0.00019178,2]
[347245118,1735621839659,-500.0,0.00019178,2]
[347245119,1735621839668,-500.0,0.00019178,2]
[347245120,1735621839677,-500.0,0.00019178,2]
[347245121,1735621839686,-500.0,0.00019178,2]
[347245122,1735621839696,-500.0,0.00019178,2]
[347245123,1735621839707,-500.0,0.00019178,2]
[347245124,1735621839717,-500.0,0.00019178,2]
[347245125,1735621839726,-502.83384756,0.00019178,2]
[347245126,1735621839735,-500.0,0.00019178,2]
[347245127,1735621839745,-529.68,0.00019178,2]
[347245128,1735621839754,-500.0,0.00019178,2]
[347245129,1735621839764,-500.0,0.00019178,2]
[347245130,1735621839773,-500.0,0.00019178,2]
[347245131,1735621839782,-503.14722397,0.00019178,2]
[347245132,1735621839791,-500.0,0.00019178,2]
[347245133,1735621839800,-500.0,0.00019178,2]
[347245134,1735621839809,-2473.1,0.00019178,2]
[347245135,1735621839818,-501.20710774,0.00019178,2]
[347245136,1735621839828,-508.47731343,0.00019178,2]
[347245137,1735621839837,-378.8064379,0.00019178,2]
[347245138,1735621839846,-500.0,0.00019178,2]
[347245139,1735621839856,-500.0,0.00019178,2]
[347245140,1735621839865,-500.75558252,0.00019178,2]
[347245141,1735621839875,-500.0,0.00019178,2]
[347245142,1735621839884,-500.0,0.00019178,2]
[347245143,1735621839893,-500.0,0.00019178,2]
[347245144,1735621839903,-500.0,0.00019178,2]
[347245145,1735621839912,-248.25600772,0.00019178,2]
[347245146,1735621839921,-776.16,0.00019178,2]
[347245147,1735621839930,-1137.71,0.00019178,2]
[347245148,1735621839940,-500.0,0.00019178,2]
[347245149,1735621839952,-500.56822267,0.00019178,2]
[347245150,1735621839962,-648.8,0.00019178,2]
[347245151,1735621839971,-500.0,0.00019178,2]
[347245152,1735621839981,-500.0,0.00019178,2]
[347245153,1735621839990,-500.0,0.00019178,2]
[347245154,1735621840001,-1000.0,0.00019178,2]
[347245155,1735621840011,-500.0,0.00019178,2]
[347245156,1735621840020,-503.0978301,0.00019178,2]
[347245157,1735621840031,-500.0,0.00019178,2]
[347245158,1735621840040,-515.25056502,0.00019178,2]
[347245159,1735621840049,-503.42427045,0.00019178,2]
[347245160,1735621840058,-500.0,0.00019178,2]
[347245161,1735621840067,-500.0,0.00019178,2]
[347245162,1735621840077,-500.0,0.00019178,2]
[347245163,1735621840086,-500.0,0.00019178,2]
[347245164,1735621840098,-500.0,0.00019178,2]
[347245165,1735621840107,-500.04279218,0.00019178,2]
[347245166,1735621840117,-498.66854331,0.00019178,2]
[347245167,1735621840126,-500.0,0.00019178,2]
[347245168,1735621840135,-500.0,0.00019178,2]
[347245169,1735621840144,-504.91899843,0.00019178,2]
[347245170,1735621840154,-372.03293123,0.00019178,2]
[347245171,1735621840163,-500.0,0.00019178,2]
[347245172,1735621840172,-501.60607898,0.00019178,2]
[347245173,1735621840181,-7917.9,0.00019178,2]
[347245174,1735621840190,-500.0,0.00019178,2]
[347245175,1735621840199,-502.48134011,0.00019178,2]
[347245176,1735621840209,-500.0,0.00019178,2]
[347245177,1735621840218,-500.0,0.00019178,2]
[347245178,1735621840227,-500.0,0.00019178,2]
[347245179,1735621840237,-500.0,0.00019178,2]
[347245181,1735621840246,-500.0,0.00019178,2]
[347245183,1735621840256,-500.0,0.00019178,2]
[347245185,1735621840265,-502.1863454,0.00019178,2]
[347245187,1735621840274,-500.0,0.00019178,2]
[347245188,1735621840283,-500.0,0.00019178,2]
[347245189,1735621840291,-500.0,0.00019178,2]
[347245190,1735621840301,-500.0,0.00019178,2]
[347245191,1735621840310,-501.18966896,0.00019178,2]
[347245192,1735621840319,-500.0,0.00019178,2]
[347245193,1735621840328,-500.0,0.00019178,2]
[347245194,1735621840338,-500.0,0.00019178,2]
[347245195,1735621840347,-500.0,0.00019178,2]
[347245196,1735621840356,-500.0,0.00019178,2]
[347245197,1735621840366,-500.96884149,0.00019178,2]
[347245198,1735621840375,-500.0,0.00019178,2]
[347245199,1735621840384,-505.14030292,0.00019178,2]
[347245200,1735621840393,-508.61726724,0.00019178,2]
[347245201,1735621840402,-500.0,0.00019178,2]
[347245203,1735621840411,-519.61119396,0.00019178,2]
[347245204,1735621840420,-500.0,0.00019178,2]
[347245205,1735621840429,-151.64825346,0.00019353,2]
[347245206,1735621840439,-164.68774575,0.000194,2]
[347245207,1735621840449,-194.158,0.000194,2]
[347245208,1735621840458,-500.0,0.00019446,3]
[347245209,1735621840467,-500.0,0.00019446,3]
[347245210,1735621840476,-871.0,0.00019446,3]
[347245211,1735621840485,-500.0,0.00019447,3]
[347245212,1735621840495,-500.0,0.00019447,3]
[347245213,1735621840504,-500.0,0.00019447,3]
[347245214,1735621840513,-500.0,0.00019447,3]
[347245215,1735621840523,-500.0,0.00019447,3]
[347245216,1735621840532,-500.0,0.00019447,3]
[347245217,1735621840542,-500.0,0.00019447,3]
[347245218,1735621840551,-500.0,0.00019447,3]
[347245219,1735621840560,-500.0,0.00019447,3]
[347245220,1735621840569,-147.09276912,0.00019447,3]
[347245221,1735621840583,-352.90723088,0.00019447,3]
[347245222,1735621840592,-500.0,0.00019447,3]
[347245223,1735621840602,-500.0,0.00019447,3]
[347245224,1735621840611,-500.0,0.00019447,3]
[347245225,1735621840621,-500.0,0.00019447,3]
[347245226,1735621840631,-500.0,0.00019447,3]
[347245227,1735621840641,-503.45731696,0.00019447,3]
[347245228,1735621840650,-609.82039449,0.00019447,3]
[347245229,1735621840659,-501.61156438,0.00019447,3]
[347245230,1735621840669,-500.0,0.00019447,3]
[347245231,1735621840678,-500.0,0.00019447,3]
[347245232,1735621840687,-500.0,0.00019447,3]
[347245233,1735621840697,-500.0,0.00019447,3]
[347245234,1735621840707,-500.0,0.00019447,3]
[347245235,1735621840716,-500.0,0.00019447,3]
[347245236,1735621840725,-500.0,0.00019447,3]
[347245237,1735621840734,-500.0,0.00019447,3]
[347245238,1735621840743,-247.78,0.00019447,3]
[347245239,1735621840752,-500.0,0.00019447,3]
[347245240,1735621840762,-500.0,0.00019447,3]
[347245241,1735621840771,-500.0,0.00019451,2]
[347245242,1735621840780,-1260.83,0.00019451,3]
[347245243,1735621840790,-500.0,0.00019452,3]
[347245244,1735621840799,-1000.0,0.00019452,3]
[347245245,1735621840808,-2473.1,0.00019452,3]
[347245246,1735621840817,-776.16,0.00019452,3]
[347245247,1735621840826,-1137.71,0.00019452,3]
[347245248,1735621840836,-1000.0,0.00019452,2]
[347245249,1735621840845,-500.0,0.00019452,3]
[347245250,1735621840854,-500.0,0.00019452,3]
[347245251,1735621840863,-7917.9,0.00019452,3]
[347245252,1735621840872,-500.0,0.00019452,3]
[347245253,1735621840882,-625.76416127,0.00019452,3]
[347245254,1735621840891,-500.0,0.00019452,3]
[347245255,1735621840901,-500.0,0.00019452,3]
[347245256,1735621840910,-500.0,0.00019452,3]
[347245257,1735621840919,-151.64825346,0.00019627,2]
[347245258,1735621840928,-500.0,0.0001972,3]
[347245259,1735621840937,-871.0,0.0001972,3]
[347245260,1735621840949,-500.0,0.00019721,3]
[347245261,1735621840959,-500.0,0.00019721,3]
[347245262,1735621840968,-500.0,0.00019721,3]
[347245263,1735621840977,-500.0,0.00019725,2]
[347245264,1735621840986,-1260.83,0.00019725,3]
[347245265,1735621840995,-500.0,0.00019725,2]
[347245266,1735621841004,-500.0,0.00019725,2]
[347245267,1735621841013,-500.0,0.00019725,2]
[347245268,1735621841022,-500.0,0.00019725,2]
[347245269,1735621841031,-590.44431222,0.00019725,2]
[347245270,1735621841041,-413.94045267,0.00019725,2]
[347245271,1735621841050,-500.0,0.00019725,2]
[347245272,1735621841059,-500.0,0.00019725,2]
[347245273,1735621841068,-296.77775099,0.00019725,2]
[347245274,1735621841077,-500.0,0.00019725,2]
[347245275,1735621841087,-500.0,0.00019725,2]
[347245276,1735621841097,-500.0,0.00019725,2]
[347245277,1735621841106,-500.0,0.00019725,2]
[347245278,1735621841116,-500.0,0.00019725,2]
[347245279,1735621841126,-500.0,0.00019725,2]
[347245280,1735621841134,-500.0,0.00019726,3]
[347245281,1735621841146,-1000.0,0.00019726,3]
[347245282,1735621841155,-2473.1,0.00019726,3]
[347245283,1735621841164,-776.16,0.00019726,3]
[347245284,1735621841174,-1137.71,0.00019726,3]
[347245285,1735621841183,-1000.0,0.00019726,2]
[347245286,1735621841192,-500.0,0.00019726,3]
[347245287,1735621841201,-500.0,0.00019726,3]
[347245288,1735621841210,-7917.9,0.00019726,3]
[347245289,1735621841220,-500.0,0.00019726,3]
[347245290,1735621841228,-411.98,0.00019726,3]
[347245291,1735621841237,-573.78973499,0.00019726,3]
[347245292,1735621841247,-500.0,0.00019726,3]
[347245293,1735621841256,-151.64825346,0.00019902,2]
[347245294,1735621841265,-871.0,0.00019994,3]
[347245295,1735621841274,-500.0,0.00019995,3]
[347245296,1735621841283,-500.0,0.00019995,3]
[347245297,1735621841292,-500.0,0.00019995,3]
[347245298,1735621841301,-337.76,0.00019998,3]
[347245299,1735621841310,-500.0,0.00019999,2]
[347245300,1735621841319,-1260.83,0.00019999,3]
[347245301,1735621841328,-500.0,0.0002,3]
[347245302,1735621841337,-1000.0,0.0002,3]
[347245303,1735621841346,-2473.1,0.0002,3]
[347245304,1735621841356,-776.16,0.0002,3]
[347245305,1735621841365,-1137.71,0.0002,3]
[347245306,1735621841375,-1000.0,0.0002,2]
[347245307,1735621841385,-500.0,0.0002,3]
[347245308,1735621841395,-500.0,0.0002,3]
[347245309,1735621841404,-5459.47057423,0.0002,3]
[347245310,1735621841472,-2458.42942577,0.0002,3]
[347245311,1735621841482,-500.0,0.0002,3]
[347245312,1735621841491,-500.0,0.0002,3]
[347245313,1735621841500,-511.3,0.0002004,2]
[347245314,1735621841509,-151.64825346,0.00020177,2]
[347245315,1735621841518,-871.0,0.00020268,3]
[347245316,1735621841527,-500.0,0.00020269,3]
[347245317,1735621841537,-500.0,0.00020269,3]
[347245318,1735621841546,-500.0,0.00020269,3]
[347245319,1735621841555,-500.0,0.00020273,3]
[347245320,1735621841565,-1000.0,0.00020273,3]
[347245321,1735621841574,-500.0,0.00020273,2]
[347245322,1735621841584,-1260.83,0.00020273,3]
[347245323,1735621841593,-2473.1,0.00020273,3]
[347245324,1735621841603,-776.16,0.00020273,3]
[347245325,1735621841612,-1137.71,0.00020273,3]
[347245326,1735621841622,-1000.0,0.00020273,2]
[347245327,1735621841632,-500.0,0.00020273,3]
[347245328,1735621841642,-500.0,0.00020273,3]
[347245329,1735621841651,-7917.9,0.00020273,3]
[347245330,1735621841661,-500.0,0.00020273,3]
[347245331,1735621841670,-500.0,0.00020273,3]
[347245332,1735621841679,-162.695289,0.00020447,2]
[347245333,1735621841689,-151.64825346,0.00020452,2]
[347245334,1735621841698,-151.0,0.000205,3]
[347245335,1735621841707,-44469.12985522,0.00020502,2]
[347245336,1735621841717,-179.921402,0.00020521,2]
[347245337,1735621841727,-871.0,0.00020542,3]
[347245338,1735621841736,-500.0,0.00020543,3]
[347245339,1735621841746,-500.0,0.00020543,3]
[347245340,1735621841755,-500.0,0.00020543,3]
[347245341,1735621841764,-500.0,0.00020547,3]
[347245342,1735621841774,-1000.0,0.00020547,3]
[347245343,1735621841783,-500.0,0.00020547,2]
[347245344,1735621841792,-1260.83,0.00020547,3]
[347245345,1735621841802,-2473.1,0.00020547,3]
[347245346,1735621841812,-776.16,0.00020547,3]
[347245347,1735621841822,-1137.71,0.00020547,3]
[347245348,1735621841833,-1000.0,0.00020547,2]
[347245349,1735621841843,-500.0,0.00020547,3]
[347245350,1735621841854,-500.0,0.00020547,3]
[347245351,1735621841864,-7917.9,0.00020547,3]
[347245352,1735621841874,-500.0,0.00020547,3]
[347245353,1735621841883,-500.0,0.00020547,3]
[347245354,1735621841893,-151.0,0.000206,4]
[347245355,1735621841902,-151.0,0.000207,4]
[347245356,1735621841992,-151.64825346,0.00020726,2]
[347245357,1735621842002,-151.0,0.000208,4]
[347245358,1735621842011,-871.0,0.00020816,3]
[347245359,1735621842020,-500.0,0.00020817,3]
[347245360,1735621842030,-500.0,0.00020817,3]
[347245361,1735621842039,-500.0,0.00020817,3]
[347245362,1735621842048,-500.0,0.00020821,3]
[347245363,1735621842057,-984.65099023,0.00020821,3]
[347245364,1735621842067,-500.0,0.00020821,2]
[347245365,1735621842076,-1260.83,0.00020821,3]
[347245366,1735621842086,-602.30491712,0.00020821,3]
[347245367,1735621842099,-1000.0,0.00020821,3]
[347245368,1735621842110,-870.79508288,0.00020821,3]
[347245369,1735621842120,-131.68706992,0.00020821,3]
[347245378,1735621843515,-500.0,0.00019178,2]
[347245379,1735621843524,-644.47293008,0.00020821,3]
[347245381,1735621843534,-1137.71,0.00020821,3]
[347245383,1735621843543,-1000.0,0.00020821,2]
[347245384,1735621843552,-500.0,0.00020821,3]
[347245386,1735621843562,-500.0,0.00020821,3]
[347245387,1735621843571,-7917.9,0.00020821,3]
[347245388,1735621843580,-500.0,0.00020821,3]
[347245389,1735621843589,-500.0,0.00020821,3]
[347245390,1735621843599,-151.0,0.000209,3]
[347245391,1735621843608,-150.0,0.00021,2]
[347245392,1735621843618,-4206.310214,0.00021,2]
[347245393,1735621843628,-151.0,0.00021,4]
[347245394,1735621843637,-151.64825346,0.00021001,2]
[347245395,1735621843647,-1986.322,0.00021045,2]
[347245396,1735621843656,-500.76763118,0.00021073,2]
[347245397,1735621843665,-150.0,0.00021089,2]
[347245398,1735621843674,-151.487097,0.00021089,2]
[347245399,1735621843684,-503.13954037,0.00021089,2]
[347245400,1735621843693,-199.55,0.00021089,2]
[347245401,1735621843703,-199.55,0.00021089,2]
[347245402,1735621843713,-150.24,0.00021089,2]
[347245403,1735621843723,-199.55,0.00021089,2]
[347245404,1735621843732,-150.24,0.00021089,2]
[347245405,1735621843741,-7099.55800033,0.00021089,11]
[347245406,1735621843751,-151.0,0.0002109,2]
[347245407,1735621843760,-151.0,0.0002109,2]
[347245408,1735621843769,-151.0,0.0002109,2]
[347245409,1735621843779,-151.0,0.0002109,2]
[347245410,1735621843788,-151.0,0.0002109,2]
[347245411,1735621843798,-200.699272,0.0002109,2]
[347245412,1735621843808,-151.776266,0.0002109,2]
[347245413,1735621843817,-151.0,0.0002109,2]
[347245414,1735621843826,-151.0,0.0002109,2]
[347245415,1735621843835,-151.0,0.0002109,2]
[347245416,1735621843844,-151.0,0.0002109,2]
[347245417,1735621843854,-871.0,0.0002109,3]
[347245418,1735621843865,-50.73443622,0.0002109,2]
[347245419,1735621843889,-100.26556378,0.0002109,2]
[347245420,1735621843905,-509.35858746,0.00021091,3]
[347245421,1735621843915,-500.0,0.00021091,3]
[347245422,1735621843924,-27.93050127,0.00021091,2]
[347245423,1735621843995,-165.10398973,0.00021091,2]
[347245424,1735621844004,-3.38673324,0.00021091,2]
[347245425,1735621844016,-189.64775776,0.00021091,2]
[347245426,1735621844027,-151.0,0.00021091,2]
[347245427,1735621844036,-500.0,0.00021091,3]
[347245428,1735621844045,-151.0,0.00021094,2]
[347245429,1735621844055,-151.0,0.00021094,2]
[347245430,1735621844064,-151.0,0.00021094,2]
[347245431,1735621844074,-500.0,0.00021095,3]
[347245432,1735621844083,-500.0,0.00021095,2]
[347245433,1735621844094,-1260.83,0.00021095,3]
[347245434,1735621844104,-2473.1,0.00021095,3]
[347245435,1735621844113,-776.16,0.00021095,3]
[347245436,1735621844122,-1137.71,0.00021095,3]
[347245437,1735621844132,-1000.0,0.00021095,2]
[347245438,1735621844141,-500.0,0.00021095,3]
[347245439,1735621844150,-500.0,0.00021095,3]
[347245440,1735621844160,-4669.90080863,0.00021095,3]
[347245448,1735622002476,29201.5259549,0.00025,120]
[347245450,1735622948016,-287.0,0.00013799,2]
[347245452,1735622948041,-1288.44324559,0.000138,2]
[347245454,1735622948071,-1575.44324559,0.000138,2]
[347245455,1735622948111,-757.55248273,0.000138,2]
[347245456,1735622949167,-11882.79641507,0.000138,2]
[347245458,1735622952116,-94.11660465,0.000138,2]
[347245459,1735622952138,-130.99185515,0.00013973,2]
[347245474,1735623032758,-31.70343385,0.00013973,2]
[347245475,1735623032768,-193.5582244,0.00018177,2]
[347245476,1735623032779,-422.7851674,0.000188,2]
[347245477,1735623032792,-836.86910714,0.000189,2]
[347245478,1735623032803,-1000.0,0.00019,4]
[347245479,1735623032814,-172.776,0.00019177,2]
[347245480,1735623032826,-500.0,0.00019178,2]
[347245481,1735623032837,-500.0,0.00019178,2]
[347245482,1735623032848,-502.47246897,0.00019178,2]
[347245483,1735623032861,-533.90831256,0.00019178,2]
[347245484,1735623032872,-500.0,0.00019178,2]
[347245485,1735623032883,-503.15863198,0.00019178,2]
[347245486,1735623032896,-504.06281218,0.00019178,2]
[347245487,1735623032907,-500.0,0.00019178,2]
[347245488,1735623032920,-504.14699879,0.00019178,2]
[347245489,1735623032931,-374.26503159,0.00019178,2]
[347245491,1735623032942,-500.49638502,0.00019178,2]
[347245492,1735623032953,-500.0,0.00019178,2]
[347245493,1735623032964,-494.5,0.00019178,2]
[347245494,1735623032975,-500.0,0.00019178,2]
[347245495,1735623032987,-501.04168108,0.00019178,2]
[347245496,1735623032998,-506.06812657,0.00019178,2]
[347245497,1735623033009,-500.0,0.00019178,2]
[347245498,1735623033021,-508.56080458,0.00019178,2]
[347245499,1735623033034,-420.2662736,0.00019178,2]
[347245500,1735623033045,-500.0,0.00019178,2]
[347245501,1735623033057,-500.0,0.00019178,2]
[347245502,1735623033068,-500.0,0.00019178,2]
[347245503,1735623033078,-206.26323314,0.00019178,2]
[347245504,1735623033088,-503.84525234,0.00019178,2]
[347245505,1735623033099,-501.8304254,0.00019178,2]
[347245506,1735623033110,-500.72953153,0.00019178,2]
[347245507,1735623033121,-514.04524496,0.00019178,2]
[347245508,1735623033133,-500.0,0.00019178,2]
[347245509,1735623033144,-538.83828976,0.00019178,2]
[347245510,1735623033155,-503.61550803,0.00019178,2]
[347245511,1735623033166,-237.00169253,0.00019178,2]
[347245512,1735623033187,-265.8614297,0.00019178,2]
[347245513,1735623033198,-524.23060408,0.00019178,2]
[347245514,1735623033210,-500.0,0.00019178,2]
[347245515,1735623033222,-500.0,0.00019178,2]
[347245516,1735623033234,-502.93336818,0.00019178,2]
[347245517,1735623033246,-86.47458204,0.00019178,2]
[347245518,1735623033260,-413.52541796,0.00019178,2]
[347245519,1735623033272,-500.0,0.00019178,2]
[347245520,1735623033284,-500.0,0.00019178,2]
[347245521,1735623033295,-502.32885268,0.00019178,2]
[347245522,1735623033306,-500.0,0.00019178,2]
[347245523,1735623033317,-500.0,0.00019178,2]
[347245524,1735623033327,-500.0,0.00019178,2]
[347245525,1735623033337,-510.45838739,0.00019178,2]
[347245526,1735623033348,-500.0,0.00019178,2]
[347245527,1735623033361,-500.0,0.00019178,2]
[347245528,1735623033374,-500.0,0.00019178,2]
[347245529,1735623033385,-500.0,0.00019178,2]
[347245530,1735623033396,-545.50570438,0.00019178,2]
[347245531,1735623033407,-504.74346387,0.00019178,2]
[347245532,1735623033417,-502.57999623,0.00019178,2]
[347245533,1735623033428,-500.0,0.00019178,2]
[347245534,1735623033439,-502.0730327,0.00019178,2]
[347245535,1735623033451,-462.29141388,0.00019178,2]
[347245537,1735623033460,-252.76944362,0.00019178,2]
[347245540,1735623033487,-247.23055638,0.00019178,2]
[347245542,1735623033498,-398.96229662,0.00019178,2]
[347245544,1735623033511,-101.03770338,0.00019178,2]
[347245546,1735623033521,-222.66784673,0.00019178,2]
[347245548,1735623033531,-500.0,0.00019178,2]
[347245550,1735623033541,-281.76525962,0.00019178,2]
[347245551,1735623033553,-506.24089583,0.00019178,2]
[347245552,1735623033563,-500.0,0.00019178,2]
[347245553,1735623033574,-500.0,0.00019178,2]
[347245554,1735623033584,-500.0,0.00019178,2]
[347245555,1735623033595,-502.3535609,0.00019178,2]
[347245556,1735623033605,-500.0,0.00019178,2]
[347245557,1735623033615,-500.0,0.00019178,2]
[347245558,1735623033626,-500.0,0.00019178,2]
[347245559,1735623033637,-500.0,0.00019178,2]
[347245561,1735623033648,-204.72,0.00019178,2]
[347245564,1735623033658,-500.0,0.00019178,2]
[347245566,1735623033669,-500.0,0.00019178,2]
[347245568,1735623033679,-500.0,0.00019178,2]
[347245570,1735623033689,-500.0,0.00019178,2]
[347245572,1735623033699,-500.0,0.00019178,2]
[347245574,1735623033710,-500.0,0.00019178,2]
[347245576,1735623033720,-500.0,0.00019178,2]
[347245578,1735623033731,-500.0,0.00019178,2]
[347245580,1735623033742,-282.56679624,0.00019178,2]
[347245600,1735623038628,-217.43320376,0.00019178,2]
[347245601,1735623038638,-500.0,0.00019178,2]
[347245602,1735623038647,-500.0,0.00019178,2]
[347245603,1735623038656,-500.0,0.00019178,2]
[347245604,1735623038666,-500.0,0.00019178,2]
[347245605,1735623038675,-500.0,0.00019178,2]
[347245606,1735623038684,-500.0,0.00019178,2]
[347245607,1735623038694,-500.0,0.00019178,2]
[347245608,1735623038703,-500.0,0.00019178,2]
[347245609,1735623038713,-513.8,0.00019178,2]
[347245610,1735623038723,-500.0,0.00019178,2]
[347245611,1735623038732,-500.0,0.00019178,2]
[347245612,1735623038741,-500.0,0.00019178,2]
[347245613,1735623038750,-500.0,0.00019178,2]
[347245614,1735623038759,-500.0,0.00019178,2]
[347245615,1735623038768,-515.75,0.00019178,2]
[347245616,1735623038778,-500.0,0.00019178,2]
[347245617,1735623038787,-500.0,0.00019178,2]
[347245618,1735623038797,-502.9,0.00019178,2]
[347245619,1735623038806,-500.0,0.00019178,2]
[347245620,1735623038816,-500.0,0.00019178,2]
[347245621,1735623038826,-500.36966031,0.00019178,2]
[347245622,1735623038835,-500.79384304,0.00019178,2]
[347245623,1735623038845,-507.52368693,0.00019178,2]
[347245624,1735623038854,-500.0,0.00019178,2]
[347245626,1735623038865,-500.0,0.00019178,2]
[347245627,1735623038874,-500.0,0.00019178,2]
[347245628,1735623038884,-500.0,0.00019178,2]
[347245629,1735623038893,-500.0,0.00019178,2]
[347245630,1735623038902,-500.0,0.00019178,2]
[347245631,1735623038911,-500.0,0.00019178,2]
[347245632,1735623038920,-500.0,0.00019178,2]
[347245633,1735623038929,-501.84019742,0.00019178,2]
[347245634,1735623038938,-501.54274237,0.00019178,2]
[347245635,1735623038947,-500.0,0.00019178,2]
[347245636,1735623038956,-393.76343054,0.00019178,2]
[347245637,1735623038965,-160.57621716,0.00019178,2]
[347245638,1735623038974,-500.0,0.00019178,2]
[347245639,1735623038984,-500.0,0.00019178,2]
[347245640,1735623038993,-500.0,0.00019178,2]
[347245641,1735623039002,-500.0,0.00019178,2]
[347245642,1735623039011,-500.0,0.00019178,2]
[347245643,1735623039020,-500.0,0.00019178,2]
[347245644,1735623039030,-182.64963597,0.00019178,2]
[347245645,1735623039039,-500.0,0.00019178,2]
[347245646,1735623039048,-500.0,0.00019178,2]
[347245647,1735623039057,-500.0,0.00019178,2]
[347245648,1735623039067,-500.0,0.00019178,2]
[347245649,1735623039076,-500.0,0.00019178,2]
[347245650,1735623039085,-500.0,0.00019178,2]